bitfinex-derivatives/quotes_BTCF0:USTF0_20241214
["timestamp","ask_amount","ask_price","bid_price","bid_amount"]
[1734142357757,0.85807367,101710.0,101700.0,0.05717603]
[1734142358855,0.85807367,101710.0,101700.0,0.05852583]
[1734142359154,0.85807367,101710.0,101700.0,0.35172274]
[1734142359855,0.85807367,101710.0,101700.0,0.00936883]
[1734142359856,1.05642932,101710.0,101700.0,0.00936883]
[1734142360262,0.9416035,101710.0,101700.0,0.00936883]
[1734142360465,0.97289949,101710.0,101700.0,0.00936883]
[1734142360663,0.9416035,101710.0,101700.0,0.00936883]
[1734142361254,0.9416035,101710.0,101700.0,0.35172274]
[1734142361755,0.9416035,101710.0,101700.0,0.05852583]
[1734142361955,0.9416035,101710.0,101700.0,0.35172274]
[1734142362155,0.9416035,101710.0,101700.0,0.58645929]
[1734142362553,0.85807367,101710.0,101700.0,0.58645929]
[1734142362756,0.9416035,101710.0,101700.0,0.58645929]
[1734142363259,0.9416035,101710.0,101700.0,0.53730229]
[1734142363463,0.96966767,101710.0,101700.0,0.00936883]
[1734142363655,1.00596767,101710.0,101700.0,0.00936883]
[1734142364457,1.00596767,101710.0,101690.0,0.29319691]
[1734142364766,1.00596767,101710.0,101700.0,0.0104359]
[1734142364767,0.56163784,101710.0,101700.0,0.0104359]
[1734142365068,0.92243784,101710.0,101700.0,0.0104359]
[1734142365463,0.92193784,101710.0,101700.0,0.0104359]
[1734142366454,1.22193784,101710.0,101700.0,0.0104359]
[1734142366661,1.58525784,101710.0,101700.0,0.0104359]
[1734142368564,1.7523175,101710.0,101700.0,0.0104359]
[1734142371066,1.36878767,101710.0,101700.0,0.0104359]
[1734142371957,1.33248767,101710.0,101700.0,0.0104359]
[1734142372159,1.21766185,101710.0,101700.0,0.0104359]
[1734142372357,1.21766185,101710.0,101700.0,0.24614936]
[1734142372571,1.21766185,101710.0,101700.0,0.53934627]
[1734142373265,1.21766185,101710.0,101700.0,0.30363281]
[1734142373463,1.21766185,101710.0,101700.0,0.53902929]
[1734142373864,1.21766185,101710.0,101700.0,0.58402929]
[1734142374163,1.21766185,101710.0,101700.0,0.62922929]
[1734142375164,1.21766185,101710.0,101700.0,0.53902929]
[1734142376964,1.21766185,101710.0,101700.0,0.53872002]
[1734142377372,1.21766185,101710.0,101700.0,0.59830926]
[1734142377763,1.21766185,101710.0,101700.0,0.89272558]
[1734142378262,1.21766185,101710.0,101700.0,0.59830926]
[1734142379165,1.21766185,101710.0,101700.0,0.87814116]
[1734142380562,0.77081202,101710.0,101700.0,0.87814116]
[1734142380873,0.77081202,101710.0,101700.0,0.92173783]
[1734142381075,0.77081202,101710.0,101700.0,0.87871493]
[1734142382086,0.85434185,101710.0,101700.0,0.87871493]
[1734142382876,0.36086002,101710.0,101700.0,0.94287217]
[1734142383074,6.002e-05,101710.0,101700.0,1.82062634]
[1734142383477,6.002e-05,101710.0,101700.0,1.02770123]
[1734142383684,6.002e-05,101710.0,101700.0,1.82062634]
[1734142383886,6.002e-05,101710.0,101700.0,1.41045459]
[1734142384179,6.002e-05,101710.0,101700.0,1.93648481]
[1734142384380,0.44432983,101730.0,101700.0,1.82238199]
[1734142384580,0.49397183,101730.0,101720.0,0.35308053]
[1734142384775,0.49397183,101730.0,101720.0,0.86799964]
[1734142385384,0.49397183,101730.0,101720.0,0.58816774]
[1734142385581,0.49347183,101730.0,101720.0,0.24552311]
[1734142385780,0.409942,101730.0,101720.0,0.87249696]
[1734142385981,0.41961554,101730.0,101720.0,0.87249696]
[1734142386182,0.41961554,101730.0,101720.0,0.87163182]
[1734142386583,0.42011554,101730.0,101720.0,0.87163182]
[1734142386885,0.50364537,101730.0,101720.0,0.87163182]
[1734142387193,0.50364537,101730.0,101720.0,0.59860364]
[1734142387488,0.50364537,101730.0,101720.0,0.87094688]
[1734142387682,0.41961554,101730.0,101720.0,0.91514688]
[1734142387881,0.409942,101730.0,101720.0,0.91514688]
[1734142388278,0.49347183,101730.0,101720.0,0.91514688]
[1734142388482,0.49347183,101730.0,101720.0,0.64280364]
[1734142388682,0.49397183,101730.0,101720.0,0.93667174]
[1734142388985,0.0005,101730.0,101720.0,0.98581874]
[1734142389191,0.0005,101730.0,101720.0,0.96429388]
[1734142389395,0.0005,101730.0,101720.0,0.61121335]
[1734142389691,0.49347283,101730.0,101720.0,0.64223922]
[1734142389892,0.409943,101730.0,101720.0,0.64223922]
[1734142390693,0.49397283,101730.0,101720.0,0.64223922]
[1734142391092,0.57750266,101730.0,101720.0,0.53923161]
[1734142391296,0.92270266,101730.0,101710.0,0.17020513]
[1734142391489,0.92270266,101730.0,101700.0,0.2937085]
[1734142391490,0.49347683,101720.0,101700.0,0.2937085]
[1734142391792,0.49348183,101710.0,101700.0,0.52131853]
[1734142391998,0.049157,101700.0,101690.0,0.68882461]
[1734142392289,0.049157,101700.0,101690.0,0.91748861]
[1734142392479,0.049157,101700.0,101690.0,0.62378011]
[1734142393291,0.049157,101700.0,101690.0,0.67294211]
[1734142393292,0.409957,101700.0,101690.0,0.67294211]
[1734142393584,0.409957,101700.0,101690.0,0.62378011]
[1734142394581,0.409953,101710.0,101690.0,0.59276924]
[1734142394791,0.409953,101710.0,101700.0,0.64618924]
[1734142394981,0.409953,101710.0,101700.0,0.87485324]
[1734142395192,0.49348283,101710.0,101700.0,0.87485324]
[1734142395692,0.409953,101710.0,101700.0,0.58113086]
[1734142396190,0.049153,101710.0,101700.0,0.58113086]
[1734142396592,0.409953,101710.0,101700.0,0.58113086]
[1734142396887,0.049153,101710.0,101700.0,0.9026311]
[1734142398091,0.049153,101710.0,101700.0,0.55016424]
[1734142398394,0.80756983,101720.0,101700.0,0.55016424]
[1734142398597,0.773189,101720.0,101710.0,0.69300072]
[1734142398793,0.773189,101720.0,101710.0,0.91923246]
[1734142399493,0.773189,101720.0,101710.0,0.62541395]
[1734142399794,0.78290303,101720.0,101710.0,0.62541395]
[1734142401792,0.78290303,101720.0,101710.0,0.67456595]
[1734142401987,0.42210303,101720.0,101710.0,0.63465537]
[1734142402188,0.412389,101720.0,101710.0,0.68015537]
[1734142402497,0.412389,101720.0,101710.0,1.0490707]
[1734142402795,0.36324,101720.0,101710.0,0.6371433]
[1734142403394,0.36324,101720.0,101710.0,0.63458013]
[1734142403594,0.409945,101730.0,101710.0,0.63458013]
[1734142403897,0.409945,101730.0,101720.0,0.69001152]
[1734142404094,0.409945,101730.0,101720.0,0.91507391]
[1734142404496,0.409945,101730.0,101720.0,0.8895971]
[1734142404695,0.41989784,101730.0,101720.0,0.8895971]
[1734142405695,0.05859784,101730.0,101720.0,0.9387441]
[1734142406293,0.41939784,101730.0,101720.0,0.62111413]
[1734142406800,0.41939784,101730.0,101720.0,0.0433]
[1734142407590,0.41939784,101730.0,101720.0,0.26840602]
[1734142407591,0.409945,101730.0,101720.0,0.26840602]
[1734142407798,0.3608,101730.0,101720.0,0.93867882]
[1734142407997,0.3608,101730.0,101720.0,0.99748016]
[1734142408200,0.3608,101730.0,101720.0,1.08100999]
[1734142408389,0.409933,101750.0,101740.0,0.049138]
[1734142408702,0.409933,101750.0,101740.0,0.67018866]
[1734142408703,0.049133,101750.0,101740.0,0.67018866]
[1734142408903,0.049133,101750.0,101740.0,0.31745575]
[1734142409094,0.049133,101750.0,101740.0,0.71665836]
[1734142409406,0.409933,101750.0,101740.0,0.62430863]
[1734142409998,0.409933,101750.0,101740.0,0.91814046]
[1734142411504,0.409933,101750.0,101740.0,0.62430863]
[1734142412004,0.3608,101750.0,101740.0,0.67344663]
[1734142412392,0.3608,101750.0,101740.0,0.62694663]
[1734142412592,0.409933,101750.0,101740.0,0.57780863]
[1734142413193,0.409933,101750.0,101740.0,0.62694663]
[1734142414098,0.409933,101750.0,101740.0,0.6953243]
[1734142414301,0.409933,101750.0,101740.0,0.91532536]
[1734142414603,0.410433,101750.0,101740.0,0.91532536]
[1734142415094,0.3613,101750.0,101740.0,0.91532536]
[1734142415291,0.3613,101750.0,101740.0,0.96162536]
[1734142415898,0.0005,101750.0,101740.0,0.66814167]
[1734142419105,0.0005,101750.0,101740.0,0.96129839]
[1734142419703,0.0005,101750.0,101740.0,0.74129733]
[1734142420100,0.0005,101750.0,101740.0,1.11260814]
[1734142421000,0.0005,101750.0,101740.0,0.75990553]
[1734142421200,0.0005,101750.0,101740.0,1.11145666]
[1734142421609,0.0005,101750.0,101740.0,1.11017996]
[1734142423610,0.41833105,101780.0,101750.0,0.049129]
[1734142423611,0.01103105,101780.0,101750.0,0.049129]
[1734142423813,0.01103105,101780.0,101770.0,0.049123]
[1734142424410,0.00147457,101780.0,101770.0,0.34209047]
[1734142424611,0.817874,101790.0,101780.0,0.049118]
[1734142424914,0.76876,101790.0,101780.0,0.049118]
[1734142425111,0.72396,101790.0,101780.0,0.049118]
[1734142425318,0.645709,101800.0,101770.0,1.18028126]
[1734142425519,0.60939436,101800.0,101790.0,0.049114]
[1734142425909,0.69292419,101800.0,101790.0,0.049114]
[1734142426306,0.56028536,101800.0,101790.0,0.049114]
[1734142426905,0.51678536,101800.0,101790.0,0.049114]
[1734142428213,0.47028536,101800.0,101790.0,0.049114]
[1734142428619,0.47028536,101800.0,101790.0,0.091914]
[1734142429118,0.47028536,101800.0,101790.0,0.137714]
[1734142429622,0.47078536,101800.0,101790.0,0.137714]
[1734142432424,0.10998536,101800.0,101790.0,0.137714]
[1734142432824,0.19351519,101800.0,101780.0,0.00967773]
[1734142433133,0.60342719,101800.0,101780.0,0.09823]
[1734142433525,0.51989736,101800.0,101790.0,0.049113]
[1734142436124,0.47078536,101800.0,101790.0,0.049113]
[1734142436529,0.4613,101800.0,101790.0,0.049113]
[1734142437027,0.1005,101800.0,101790.0,0.049113]
[1734142437220,0.1005,101800.0,101790.0,0.093413]
[1734142438829,0.1005,101800.0,101790.0,0.454213]
[1734142439331,0.1005,101800.0,101790.0,0.53774283]
[1734142439633,0.1005,101800.0,101790.0,0.8773103]
[1734142439833,0.1005,101800.0,101790.0,0.79378047]
[1734142440331,0.1005,101800.0,101790.0,0.38638047]
[1734142440532,0.1005,101800.0,101790.0,0.093413]
[1734142441731,0.1005,101800.0,101790.0,0.17694283]
[1734142442125,0.049113,101790.0,101780.0,0.64452843]
[1734142442336,0.49344283,101790.0,101760.0,0.33996747]
[1734142442636,0.49344283,101790.0,101760.0,0.17581993]
[1734142442637,0.49345283,101770.0,101760.0,0.17581993]
[1734142442829,0.409923,101770.0,101760.0,0.17581993]
[1734142443222,0.093623,101770.0,101760.0,0.22494793]
[1734142443435,0.454423,101770.0,101760.0,0.22494793]
[1734142443626,0.3608,101770.0,101760.0,0.30847776]
[1734142443831,0.049115,101790.0,101760.0,1.0864253]
[1734142444035,0.55491,101800.0,101780.0,0.049114]
[1734142444429,0.55491,101800.0,101780.0,0.38718147]
[1734142444628,0.3608,101790.0,101780.0,0.38718147]
[1734142444830,0.19411,101800.0,101780.0,0.0451]
[1734142445031,0.3608,101790.0,101780.0,0.094218]
[1734142445230,0.3608,101790.0,101780.0,0.38718547]
[1734142445732,0.19411,101800.0,101790.0,0.049113]
[1734142445937,0.55491,101800.0,101790.0,0.049113]
[1734142446837,0.55491,101800.0,101780.0,0.38718347]
[1734142447037,0.3608,101790.0,101780.0,0.38718347]
[1734142447236,0.63843983,101800.0,101780.0,0.38718347]
[1734142447434,0.3608,101790.0,101780.0,0.38718347]
[1734142449537,0.3608,101790.0,101780.0,0.73874443]
[1734142449932,0.3608,101790.0,101780.0,0.38718347]
[1734142450433,0.63793983,101800.0,101780.0,0.38718347]
[1734142450633,0.63793983,101800.0,101790.0,0.29296747]
[1734142450834,0.63793983,101800.0,101780.0,0.094216]
[1734142450835,0.63793983,101800.0,101780.0,0.7482634]
[1734142451131,0.63793983,101800.0,101780.0,0.6991474]
[1734142451132,0.44432983,101790.0,101780.0,0.6991474]
[1734142451333,0.49344283,101790.0,101780.0,0.6991474]
[1734142452240,0.49344283,101790.0,101780.0,0.33806747]
[1734142452842,0.49344283,101790.0,101780.0,0.29296747]
[1734142453032,0.49344283,101790.0,101780.0,0.64452843]
[1734142453334,0.49344283,101790.0,101780.0,0.35156096]
[1734142455740,0.49344283,101790.0,101780.0,0.40067896]
[1734142455928,0.50286952,101790.0,101780.0,0.40067896]
[1734142456132,0.44432983,101790.0,101780.0,0.65718221]
[1734142456336,0.5053,101800.0,101790.0,0.049113]
[1734142456533,0.5053,101800.0,101790.0,0.7425783]
[1734142456534,0.1445,101800.0,101790.0,0.7425783]
[1734142456736,0.63793883,101800.0,101790.0,0.70496096]
[1734142456943,0.63793883,101800.0,101790.0,0.44845771]
[1734142457134,0.63793883,101800.0,101790.0,0.70496096]
[1734142463359,0.554409,101800.0,101790.0,0.70496096]
[1734142463648,0.4608,101800.0,101790.0,0.70496096]
[1734142463844,0.4608,101800.0,101790.0,0.39871625]
[1734142464143,0.4608,101800.0,101790.0,0.81032564]
[1734142464745,0.4608,101800.0,101790.0,0.39871625]
[1734142466136,0.1,101800.0,101790.0,0.39871625]
[1734142466346,0.4608,101800.0,101790.0,0.39871625]
[1734142467048,0.1,101800.0,101790.0,0.39871625]
[1734142467253,0.4608,101800.0,101790.0,0.39871625]
[1734142468147,0.4608,101800.0,101790.0,0.81032564]
[1734142468851,0.4608,101800.0,101790.0,0.30290325]
[1734142468852,0.59343883,101800.0,101790.0,0.30290325]
[1734142469652,0.59343883,101800.0,101790.0,0.65580884]
[1734142470955,0.59343883,101800.0,101790.0,0.70492184]
[1734142473455,0.509909,101800.0,101790.0,0.35201625]
[1734142474253,0.909909,101800.0,101790.0,0.35201625]
[1734142475549,0.909909,101800.0,101790.0,0.76362564]
[1734142475949,0.909909,101800.0,101790.0,0.35201625]
[1734142477243,0.909909,101800.0,101790.0,0.35150329]
[1734142479447,0.909909,101800.0,101790.0,0.30239029]
[1734142479642,0.99343883,101800.0,101790.0,0.60920569]
[1734142479958,1.08583883,101800.0,101790.0,0.60920569]
[1734142481451,1.08583883,101800.0,101790.0,0.3532154]
[1734142481654,1.08583883,101800.0,101790.0,0.61112961]
[1734142483747,1.46936866,101800.0,101790.0,0.90557688]
[1734142483948,1.47248899,101800.0,101790.0,0.52981492]
[1734142484356,1.55601882,101800.0,101790.0,0.41205107]
[1734142485154,1.55601882,101800.0,101790.0,0.17656748]
[1734142485155,1.17248899,101800.0,101790.0,0.17656748]
[1734142485345,1.17248899,101800.0,101790.0,0.41205107]
[1734142485553,1.25601882,101800.0,101790.0,0.41205107]
[1734142485748,1.55601882,101800.0,101790.0,0.41205107]
[1734142485950,1.47248899,101800.0,101790.0,0.41205107]
[1734142486563,1.55601882,101800.0,101790.0,0.41205107]
[1734142486758,1.55601882,101800.0,101790.0,0.17656748]
[1734142486961,1.41845237,101800.0,101790.0,0.17656748]
[1734142487162,1.30291882,101800.0,101790.0,0.41205107]
[1734142487458,1.30291882,101800.0,101790.0,0.17656748]
[1734142487653,1.60291882,101800.0,101790.0,0.17656748]
[1734142489260,1.30291882,101800.0,101790.0,0.17656748]
[1734142489460,0.049113,101790.0,101780.0,0.41205107]
[1734142489652,0.57697266,101790.0,101780.0,0.41183428]
[1734142490154,0.49344283,101790.0,101780.0,0.69666473]
[1734142490356,0.49344283,101790.0,101780.0,0.74126473]
[1734142490547,0.409913,101790.0,101780.0,0.74126473]
[1734142490750,0.409913,101790.0,101780.0,0.4934334]
[1734142490954,0.409913,101790.0,101780.0,0.7517789]
[1734142491454,0.049113,101790.0,101780.0,0.7517789]
[1734142491862,0.409913,101790.0,101780.0,0.7517789]
[1734142492358,0.049113,101790.0,101780.0,0.4934334]
[1734142492953,0.049113,101790.0,101780.0,0.3985635]
[1734142493158,0.409913,101790.0,101780.0,0.3985635]
[1734142493353,0.409913,101790.0,101780.0,0.75118607]
[1734142493656,0.409913,101790.0,101780.0,0.7511854]
[1734142493856,0.409913,101790.0,101780.0,0.3985635]
[1734142494067,0.049113,101790.0,101780.0,0.75118639]
[1734142494251,0.049113,101790.0,101780.0,0.3985635]
[1734142494457,0.409913,101790.0,101780.0,0.75120226]
[1734142494671,0.049113,101790.0,101780.0,0.75120213]
[1734142494852,0.049113,101790.0,101780.0,0.3985635]
[1734142495258,0.049113,101790.0,101780.0,0.65471725]
[1734142495468,0.049113,101790.0,101780.0,0.39637175]
[1734142495765,0.49344283,101790.0,101780.0,0.39725509]
[1734142495957,0.49344283,101790.0,101780.0,0.30075375]
[1734142496153,0.49344283,101790.0,101780.0,0.65342935]
[1734142497365,0.49344283,101790.0,101780.0,0.90436741]
[1734142497366,0.57697266,101790.0,101780.0,0.90436741]
[1734142497570,0.49344283,101790.0,101780.0,0.90436741]
[1734142497866,0.49344283,101790.0,101780.0,0.64662024]
[1734142498564,0.57697266,101790.0,101780.0,0.64662024]
[1734142499170,0.49344283,101790.0,101780.0,0.64662024]
[1734142499565,0.85644283,101790.0,101780.0,0.64662024]
[1734142501063,0.93997266,101790.0,101780.0,0.64662024]
[1734142501269,0.93997266,101790.0,101780.0,0.74686466]
[1734142501270,1.03157266,101790.0,101780.0,0.74686466]
[1734142501583,1.03157266,101790.0,101780.0,0.23521084]
[1734142501765,1.04140824,101790.0,101780.0,0.4116065]
[1734142501973,1.08520824,101790.0,101780.0,0.4116065]
[1734142503663,1.08520824,101790.0,101780.0,0.23521084]
[1734142504765,0.99360824,101790.0,101780.0,0.23521084]
[1734142504969,0.91007841,101790.0,101780.0,0.23521084]
[1734142505568,0.99360824,101790.0,101770.0,0.38886764]
[1734142505762,0.49344783,101780.0,101770.0,0.38886764]
[1734142506472,0.49344783,101780.0,101770.0,0.094923]
[1734142506974,0.49344783,101780.0,101770.0,0.4475986]
[1734142507468,0.49344783,101780.0,101770.0,0.70638429]
[1734142507668,0.49344783,101780.0,101770.0,0.4475986]
[1734142508373,0.49344783,101780.0,101770.0,0.3984756]
[1734142512573,0.49344783,101780.0,101770.0,0.65704863]
[1734142513278,0.409918,101780.0,101770.0,0.65704863]
[1734142514771,0.409918,101780.0,101770.0,0.70617163]
[1734142514977,0.049118,101780.0,101770.0,0.35349603]
[1734142515981,0.772915,101790.0,101780.0,0.049118]
[1734142516304,0.772915,101790.0,101780.0,0.35249103]
[1734142516674,0.772915,101790.0,101780.0,1.02107889]
[1734142516970,0.772915,101790.0,101780.0,0.76250586]
[1734142517370,0.412115,101790.0,101780.0,1.06086991]
[1734142517777,0.412115,101790.0,101780.0,0.76250586]
[1734142518578,0.363,101790.0,101780.0,0.76250586]
[1734142519491,0.363,101790.0,101780.0,1.53128064]
[1734142519684,0.363,101790.0,101780.0,1.89208064]
[1734142520075,0.8613,101800.0,101780.0,1.97561047]
[1734142520281,0.5005,101800.0,101790.0,0.86522239]
[1734142520580,0.5005,101800.0,101790.0,0.76140086]
[1734142520977,0.5005,101800.0,101790.0,1.11767681]
[1734142521384,0.4329,101800.0,101790.0,1.50120664]
[1734142521978,0.4324,101800.0,101790.0,1.50120664]
[1734142522183,0.4324,101800.0,101790.0,1.97161737]
[1734142522383,0.4324,101800.0,101790.0,1.97109541]
[1734142523281,0.4324,101800.0,101790.0,1.56000798]
[1734142523481,0.0005,101810.0,101800.0,0.049108]
[1734142523673,0.0005,101810.0,101800.0,1.15677384]
[1734142523879,0.36227355,101830.0,101820.0,0.049098]
[1734142524086,0.36227355,101830.0,101820.0,0.7620307]
[1734142524087,0.00147355,101830.0,101820.0,0.7620307]
[1734142524286,0.00147355,101830.0,101820.0,0.8042307]
[1734142524482,0.48612983,101850.0,101830.0,0.049089]
[1734142524483,0.54501824,101850.0,101830.0,0.049089]
[1734142524680,0.54501824,101850.0,101840.0,0.23451252]
[1734142524877,0.45413324,101850.0,101840.0,0.28360152]
[1734142525082,0.37060341,101850.0,101840.0,0.34222965]
[1734142525385,0.41968741,101850.0,101840.0,0.34222965]
[1734142525581,0.41968741,101850.0,101840.0,0.28334234]
[1734142528482,0.37060341,101850.0,101840.0,0.049089]
[1734142528683,0.90057083,101860.0,101840.0,0.049089]
[1734142528884,0.817041,101860.0,101840.0,0.36686817]
[1734142529087,0.817041,101860.0,101850.0,0.0835]
[1734142529588,0.817041,101860.0,101850.0,0.132584]
[1734142529881,0.817041,101860.0,101850.0,0.0835]
[1734142530485,0.94965383,101860.0,101830.0,0.23359255]
[1734142530685,0.85421883,101840.0,101820.0,0.32139255]
[1734142530876,0.049098,101820.0,101810.0,0.5758342]
[1734142531101,0.409898,101820.0,101800.0,1.0244382]
[1734142531284,0.409898,101820.0,101800.0,0.6636382]
[1734142531490,0.409898,101820.0,101800.0,0.39004394]
[1734142531785,0.410398,101820.0,101800.0,0.43914794]
[1734142531992,0.410398,101820.0,101800.0,0.39004294]
[1734142532186,0.410398,101820.0,101810.0,0.049103]
[1734142532790,0.409898,101820.0,101810.0,0.049103]
[1734142532990,0.409898,101820.0,101800.0,0.35081926]
[1734142533191,0.049103,101810.0,101800.0,0.38037987]
[1734142533385,0.409903,101810.0,101800.0,0.38037987]
[1734142533591,0.409903,101810.0,101800.0,0.33527987]
[1734142533793,0.409903,101810.0,101800.0,0.10168732]
[1734142534186,0.049103,101810.0,101800.0,0.33527987]
[1734142534495,0.409903,101810.0,101800.0,0.33527987]
[1734142534798,0.049103,101810.0,101800.0,0.33527987]
[1734142534994,0.409903,101810.0,101800.0,0.33527987]
[1734142535690,0.3608,101810.0,101800.0,0.33527987]
[1734142535888,0.3608,101810.0,101800.0,0.4188097]
[1734142536090,0.3608,101810.0,101800.0,0.33527987]
[1734142536288,0.4104,101820.0,101800.0,0.33527987]
[1734142536785,0.4099,101820.0,101800.0,0.33527987]
[1734142536985,0.459002,101820.0,101800.0,0.33527987]
[1734142538689,0.4099,101820.0,101800.0,0.33527987]
[1734142538897,0.459002,101820.0,101800.0,0.33527987]
[1734142539585,0.0491,101820.0,101810.0,0.049103]
[1734142539792,0.0491,101820.0,101810.0,0.28269555]
[1734142542995,0.57695966,101820.0,101800.0,0.5267332]
[1734142543199,0.53623283,101810.0,101790.0,0.54690654]
[1734142543503,0.452408,101800.0,101790.0,0.59601954]
[1734142543993,0.091608,101800.0,101790.0,0.59551954]
[1734142544595,0.452408,101800.0,101790.0,0.59551954]
[1734142544900,0.452408,101800.0,101790.0,0.59601954]
[1734142545300,0.452408,101800.0,101790.0,0.60592457]
[1734142545996,0.091608,101800.0,101790.0,0.37183202]
[1734142546996,0.091608,101800.0,101790.0,0.37233202]
[1734142547401,0.452408,101800.0,101790.0,0.37233202]
[1734142547801,0.452408,101800.0,101790.0,0.37183202]
[1734142548101,0.091608,101800.0,101790.0,0.37183202]
[1734142548897,0.091608,101800.0,101790.0,0.35275124]
[1734142551299,0.091608,101800.0,101790.0,0.70488394]
[1734142552008,0.091608,101800.0,101790.0,0.35275124]
[1734142552803,0.53593783,101800.0,101790.0,0.52826371]
[1734142553198,0.53593783,101800.0,101790.0,0.23512306]
[1734142556804,0.53593783,101800.0,101790.0,0.23462306]
[1734142556995,0.53593783,101800.0,101790.0,0.52776371]
[1734142557910,0.53593783,101800.0,101790.0,0.23462306]
[1734142558102,0.53593783,101800.0,101790.0,0.16582306]
[1734142558301,0.53593783,101800.0,101780.0,0.29364065]
[1734142558302,0.049113,101790.0,101780.0,0.16632306]
[1734142558497,0.53694283,101790.0,101780.0,0.16632306]
[1734142559010,0.53694283,101790.0,101780.0,0.16582306]
[1734142559208,0.049118,101780.0,101770.0,0.29314065]
[1734142559514,0.049123,101770.0,101760.0,0.64527335]
[1734142559810,0.49345283,101770.0,101760.0,0.29314065]
[1734142561414,0.53885283,101770.0,101760.0,0.29314065]
[1734142562304,0.049127,101760.0,101750.0,0.73660535]
[1734142562610,0.49345683,101760.0,101750.0,0.73660535]
[1734142564312,0.49345683,101760.0,101750.0,0.38447265]
[1734142564717,0.49345683,101760.0,101750.0,0.33534065]
[1734142567207,0.49345683,101760.0,101750.0,0.0422]
[1734142567808,0.49345683,101760.0,101750.0,0.33534065]
[1734142569224,0.49345683,101760.0,101750.0,0.0422]
[1734142572310,0.49345683,101760.0,101750.0,0.33534065]
[1734142573308,0.49345683,101760.0,101750.0,0.0422]
[1734142573916,0.49345683,101760.0,101750.0,0.33584065]
[1734142574807,0.49345683,101760.0,101750.0,0.33534065]
[1734142575812,0.49345683,101760.0,101750.0,0.33584065]
[1734142576822,0.49345683,101760.0,101750.0,0.33534065]
[1734142577850,0.49345683,101760.0,101750.0,0.33584065]
[1734142578953,0.49345683,101760.0,101750.0,0.33534065]
[1734142579445,0.13265683,101760.0,101750.0,0.33534065]
[1734142579646,0.49345683,101760.0,101750.0,0.33534065]
[1734142579937,0.49345683,101760.0,101750.0,0.33584065]
[1734142580837,0.49345683,101760.0,101750.0,0.33534065]
[1734142581233,0.46469033,101760.0,101750.0,0.33534065]
[1734142582028,0.10389033,101760.0,101750.0,0.33534065]
[1734142582519,0.46469033,101760.0,101750.0,0.68747335]
[1734142582724,0.46469033,101760.0,101750.0,0.33534065]
[1734142583425,0.46469033,101760.0,101750.0,0.68747335]
[1734142583928,0.51945366,101760.0,101750.0,0.68747335]
[1734142585434,0.51945366,101760.0,101750.0,0.3943327]
[1734142587632,0.51945366,101760.0,101750.0,0.29974817]
[1734142588360,0.96095971,101760.0,101750.0,0.29446113]
[1734142588545,1.07649326,101760.0,101750.0,0.41066474]
[1734142588718,0.049137,101740.0,101730.0,0.411394]
[1734142589023,0.49726648,101740.0,101730.0,0.26910923]
[1734142589228,0.6067135,101740.0,101730.0,7.252e-05]
[1734142589730,0.9675135,101740.0,101730.0,7.252e-05]
[1734142589923,0.96760606,101740.0,101730.0,0.00057252]
[1734142590429,1.33068606,101740.0,101730.0,0.00057252]
[1734142590929,1.33068606,101740.0,101730.0,7.252e-05]
[1734142591429,1.38544939,101740.0,101730.0,7.252e-05]
[1734142591639,0.049147,101720.0,101710.0,0.05874373]
[1734142591826,0.51947366,101720.0,101710.0,0.05874373]
[1734142592333,0.51947366,101720.0,101710.0,0.049151]
[1734142592524,0.46471033,101720.0,101710.0,0.049151]
[1734142592926,0.51947366,101720.0,101710.0,0.049151]
[1734142593124,0.49346374,101720.0,101710.0,0.049151]
[1734142594022,0.3608,101720.0,101710.0,0.049151]
[1734142594232,0.99065295,101740.0,101710.0,0.49346874]
[1734142594233,0.36089256,101740.0,101710.0,0.49346874]
[1734142594434,0.41003256,101740.0,101730.0,0.049142]
[1734142594631,0.4935493,101740.0,101730.0,0.049142]
[1734142594832,0.4935493,101740.0,101730.0,0.0863]
[1734142595045,0.4935493,101740.0,101730.0,0.0426]
[1734142595330,0.049142,101730.0,101720.0,0.090546]
[1734142595539,0.13265874,101730.0,101720.0,0.090546]
[1734142595937,0.4444093,101740.0,101720.0,0.0414]
[1734142596130,0.4444093,101740.0,101730.0,0.13265874]
[1734142596131,9.256e-05,101740.0,101730.0,0.13265874]
[1734142597433,9.256e-05,101740.0,101730.0,0.49345874]
[1734142598340,9.256e-05,101740.0,101730.0,0.97977506]
[1734142598541,9.256e-05,101740.0,101730.0,0.89625832]
[1734142600033,9.256e-05,101740.0,101730.0,0.59625832]
[1734142601436,0.41002956,101740.0,101720.0,1.2931853]
[1734142601737,0.409942,101730.0,101720.0,0.00975309]
[1734142601943,0.409942,101730.0,101710.0,0.90757048]
[1734142602135,0.409942,101730.0,101710.0,0.545897]
[1734142602334,0.49354386,101720.0,101710.0,0.0005]
[1734142602535,0.41002712,101720.0,101710.0,0.0005]
[1734142604941,0.49354386,101720.0,101710.0,0.0005]
[1734142606044,0.41002712,101720.0,101710.0,0.0005]
[1734142606241,0.41002712,101720.0,101710.0,0.049652]
[1734142607244,0.41981205,101720.0,101710.0,0.049652]
[1734142608242,0.36088012,101720.0,101710.0,0.049652]
[1734142609144,8.012e-05,101720.0,101710.0,0.410452]
[1734142609848,0.04922712,101720.0,101710.0,0.410452]
[1734142611041,8.012e-05,101720.0,101710.0,0.410452]
[1734142612039,8.012e-05,101720.0,101710.0,0.409952]
[1734142614341,0.04922712,101720.0,101710.0,0.409952]
[1734142614549,0.04922712,101720.0,101710.0,0.049152]
[1734142614741,0.04922712,101720.0,101710.0,0.409952]
[1734142614937,8.012e-05,101720.0,101710.0,0.409952]
[1734142619051,0.04922712,101720.0,101710.0,0.409952]
[1734142619254,0.41002712,101720.0,101710.0,0.049152]
[1734142619950,0.36088012,101720.0,101710.0,0.049152]
[1734142620352,8.012e-05,101720.0,101710.0,0.409952]
[1734142623655,8.012e-05,101720.0,101710.0,0.49346874]
[1734142623850,8.012e-05,101720.0,101710.0,1.01375099]
[1734142624049,0.3608,101750.0,101740.0,0.049137]
[1734142625162,0.36088496,101750.0,101740.0,0.049137]
[1734142625452,8.496e-05,101750.0,101740.0,0.409937]
[1734142628754,0.41001696,101750.0,101740.0,0.049137]
[1734142630060,0.41051696,101750.0,101740.0,0.049137]
[1734142630952,0.41001696,101750.0,101740.0,0.049137]
[1734142631255,0.04921696,101750.0,101740.0,0.049137]
[1734142631852,8.496e-05,101750.0,101740.0,0.049137]
[1734142632057,0.00058496,101750.0,101740.0,0.049137]
[1734142633065,8.496e-05,101750.0,101740.0,0.049137]
[1734142633758,8.496e-05,101750.0,101740.0,0.13265374]
[1734142633954,0.00058496,101750.0,101740.0,0.17515374]
[1734142634157,0.00058496,101750.0,101740.0,0.091637]
[1734142634360,0.41051696,101750.0,101740.0,0.049137]